fUSD/lending_fUSD_20250125
["ID","MTS","AMOUNT","RATE_DAILY","PERIOD"]
[350344820,1737805858253,-500.0,0.00017123,2]
[350344821,1737805858263,-500.0,0.00017123,2]
[350344822,1737805858273,-500.0,0.00017123,2]
[350344823,1737805858282,-500.0,0.00017123,2]
[350344824,1737805858292,-500.0,0.00017123,2]
[350344825,1737805858301,-500.0,0.00017123,2]
[350344826,1737805858310,-500.0,0.00017123,2]
[350344827,1737805858321,-500.0,0.00017123,2]
[350344828,1737805858331,-500.0,0.00017123,2]
[350344829,1737805858342,-500.0,0.00017123,2]
[350344830,1737805858351,-500.0,0.00017123,2]
[350344831,1737805858361,-500.0,0.00017123,2]
[350344832,1737805858371,-500.0,0.00017123,2]
[350344833,1737805858382,-500.0,0.00017123,2]
[350344834,1737805858394,-500.0,0.00017123,2]
[350344835,1737805858403,-500.0,0.00017123,2]
[350344836,1737805858414,-500.0,0.00017123,2]
[350344837,1737805858424,-500.0,0.00017123,2]
[350344838,1737805858435,-500.0,0.00017123,2]
[350344839,1737805858445,-500.0,0.00017123,2]
[350344840,1737805858455,-500.0,0.00017123,2]
[350344841,1737805858466,-500.0,0.00017123,2]
[350344842,1737805858477,-500.0,0.00017123,2]
[350344843,1737805858487,-500.0,0.00017123,2]
[350344844,1737805858626,-500.0,0.00017123,2]
[350344845,1737805858636,-500.0,0.00017123,2]
[350344846,1737805858645,-515.58931405,0.00017123,2]
[350344847,1737805858655,-500.0,0.00017123,2]
[350344848,1737805858664,-500.0,0.00017123,2]
[350344849,1737805858674,-500.0,0.00017123,2]
[350344850,1737805858683,-500.0,0.00017123,2]
[350344851,1737805858693,-500.0,0.00017123,2]
[350344852,1737805858702,-500.0,0.00017123,2]
[350344853,1737805858711,-500.0,0.00017123,2]
[350344854,1737805858721,-500.0,0.00017123,2]
[350344855,1737805858730,-1055.97,0.00017123,2]
[350344856,1737805858739,-490.42211074,0.00017123,2]
[350344857,1737805858750,-500.0,0.00017123,2]
[350344858,1737805858760,-500.0,0.00017123,2]
[350344859,1737805858769,-500.0,0.00017123,2]
[350344860,1737805858779,-500.0,0.00017123,2]
[350344861,1737805858788,-500.0,0.00017123,2]
[350344862,1737805858797,-1166.4,0.00017123,2]
[350344863,1737805858807,-500.0,0.00017123,2]
[350344864,1737805858816,-1085.68,0.00017123,2]
[350344865,1737805858827,-997.13,0.00017123,2]
[350344866,1737805858836,-500.0,0.00017123,2]
[350344867,1737805858845,-500.0,0.00017123,2]
[350344868,1737805858854,-572.36,0.00017123,2]
[350344869,1737805858864,-639.38,0.00017123,2]
[350344870,1737805858873,-500.0,0.00017123,2]
[350344871,1737805858882,-500.0,0.00017123,2]
[350344872,1737805858892,-500.0,0.00017123,2]
[350344873,1737805858902,-1359.98,0.00017123,2]
[350344874,1737805858912,-1992.51,0.00017123,2]
[350344875,1737805858921,-500.0,0.00017123,2]
[350344876,1737805858931,-500.0,0.00017123,2]
[350344877,1737805858940,-1558.37,0.00017123,2]
[350344878,1737805858949,-500.0,0.00017123,2]
[350344879,1737805858959,-1990.99,0.00017123,2]
[350344880,1737805858968,-500.0,0.00017123,2]
[350344881,1737805858977,-1219.62,0.00017123,2]
[350344882,1737805858986,-259.85,0.00017123,2]
[350344883,1737805858996,-500.0,0.00017123,2]
[350344884,1737805859009,-500.0,0.00017123,2]
[350344885,1737805859018,-515.88,0.00017123,2]
[350344886,1737805859028,-500.0,0.00017123,2]
[350344887,1737805859041,-178.20830095,0.00017123,2]
[350344888,1737805859051,-500.0,0.00017123,2]
[350344889,1737805859061,-500.0,0.00017123,2]
[350344890,1737805859071,-500.0,0.00017123,2]
[350344891,1737805859081,-500.0,0.00017123,2]
[350344892,1737805859090,-500.0,0.00017123,2]
[350344893,1737805859100,-1563.47,0.00017123,2]
[350344894,1737805859109,-500.0,0.00017123,2]
[350344895,1737805859118,-500.0,0.00017123,2]
[350344896,1737805859127,-500.0,0.00017123,2]
[350344897,1737805859137,-500.0,0.00017123,2]
[350344898,1737805859147,-500.0,0.00017123,2]
[350344899,1737805859156,-500.0,0.00017123,2]
[350344900,1737805859166,-500.0,0.00017123,2]
[350344901,1737805859176,-500.0,0.00017123,2]
[350344902,1737805859185,-500.0,0.00017123,2]
[350344903,1737805859195,-500.0,0.00017123,2]
[350344904,1737805859204,-500.0,0.00017123,2]
[350344905,1737805859214,-500.0,0.00017123,2]
[350344906,1737805859223,-814.57,0.00017123,2]
[350344907,1737805859233,-500.0,0.00017123,2]
[350344908,1737805859242,-500.0,0.00017123,2]
[350344909,1737805859253,-500.0,0.00017123,2]
[350344910,1737805859263,-546.71,0.00017123,2]
[350344911,1737805859273,-500.0,0.00017123,2]
[350344912,1737805859283,-500.0,0.00017123,2]
[350344913,1737805859292,-500.0,0.00017123,2]
[350344914,1737805859301,-500.0,0.00017123,2]
[350344915,1737805859311,-500.0,0.00017123,2]
[350344916,1737805859320,-500.0,0.00017123,2]
[350344917,1737805859330,-500.0,0.00017123,2]
[350344918,1737805859341,-500.0,0.00017123,2]
[350344919,1737805859351,-500.0,0.00017123,2]
[350344920,1737805859361,-500.0,0.00017123,2]
[350344921,1737805859371,-500.0,0.00017123,2]
[350344922,1737805859383,-500.0,0.00017123,2]
[350344923,1737805859394,-500.0,0.00017123,2]
[350344924,1737805859404,-1524.95,0.00017123,2]
[350344925,1737805859413,-500.0,0.00017123,2]
[350344926,1737805859423,-500.0,0.00017123,2]
[350344927,1737805859433,-362.2959428,0.00017123,2]
[350344928,1737805859443,-693.11,0.00017123,2]
[350344929,1737805859452,-500.0,0.00017123,2]
[350344930,1737805859463,-500.0,0.00017123,2]
[350344931,1737805859472,-533.97,0.00017123,2]
[350344932,1737805859482,-500.0,0.00017123,2]
[350344933,1737805859491,-465.89681342,0.00017123,2]
[350344934,1737805859502,-461.24,0.00017123,2]
[350344935,1737805859511,-500.0,0.00017123,2]
[350344936,1737805859521,-500.0,0.00017123,2]
[350344937,1737805859531,-500.0,0.00017123,2]
[350344938,1737805859541,-500.0,0.00017123,2]
[350344939,1737805859550,-500.0,0.00017123,2]
[350344940,1737805859560,-500.0,0.00017123,2]
[350344941,1737805859570,-500.0,0.00017123,2]
[350344942,1737805859579,-500.0,0.00017123,2]
[350344943,1737805859589,-962.81,0.00017123,2]
[350344944,1737805859598,-500.0,0.00017123,2]
[350344945,1737805859608,-578.56,0.00017123,2]
[350344946,1737805859617,-500.0,0.00017123,2]
[350344947,1737805859627,-804.3,0.00017123,2]
[350344948,1737805859636,-500.0,0.00017123,2]
[350344949,1737805859645,-1325.96,0.00017123,2]
[350344950,1737805859656,-500.0,0.00017123,2]
[350344951,1737805859666,-356.61263053,0.00017123,2]
[350344952,1737805859677,-500.0,0.00017123,2]
[350344953,1737805859687,-500.0,0.00017123,2]
[350344954,1737805859698,-500.0,0.00017123,2]
[350344955,1737805859707,-500.0,0.00017123,2]
[350344956,1737805859717,-2022.91,0.00017123,2]
[350344957,1737805859727,-500.0,0.00017123,2]
[350344958,1737805859737,-500.0,0.00017123,2]
[350344959,1737805859746,-500.0,0.00017123,2]
[350344960,1737805859756,-500.0,0.00017123,2]
[350344961,1737805859765,-608.41,0.00017123,2]
[350344962,1737805859774,-651.22,0.00017123,2]
[350344963,1737805859783,-500.0,0.00017123,2]
[350344964,1737805859793,-441.92,0.00017123,2]
[350344965,1737805859802,-500.0,0.00017123,2]
[350344966,1737805859811,-500.0,0.00017123,2]
[350344967,1737805859821,-945.33,0.00017123,2]
[350344968,1737805859831,-380.63602798,0.00017123,2]
[350344969,1737805859841,-1062.5,0.00017123,2]
[350344970,1737805859850,-500.0,0.00017123,2]
[350344971,1737805859860,-1846.57,0.00017123,2]
[350344972,1737805859870,-500.0,0.00017123,2]
[350344973,1737805859879,-509.45,0.00017123,2]
[350344974,1737805859888,-500.0,0.00017123,2]
[350344975,1737805859898,-500.0,0.00017123,2]
[350344976,1737805859907,-1200.27,0.00017259,2]
[350344977,1737805859917,-1168.96,0.00017259,2]
[350344978,1737805859926,-500.0,0.00017259,2]
[350344979,1737805859939,-500.0,0.0001726,2]
[350344980,1737805859948,-500.0,0.0001726,2]
[350344981,1737805859957,-538.95370861,0.0001726,2]
[350344982,1737805859966,-500.0,0.0001726,2]
[350344983,1737805859976,-500.0,0.0001726,2]
[350344984,1737805859985,-500.0,0.0001726,2]
[350344985,1737805859994,-500.0,0.0001726,2]
[350344986,1737805860004,-500.0,0.0001726,2]
[350344987,1737805860014,-500.0,0.0001726,2]
[350344988,1737805860024,-535.25652089,0.0001726,2]
[350344989,1737805860034,-500.0,0.0001726,2]
[350344990,1737805860043,-500.0,0.0001726,2]
[350344991,1737805860053,-500.0,0.0001726,2]
[350344992,1737805860062,-500.0,0.0001726,2]
[350344993,1737805860071,-500.0,0.0001726,2]
[350344994,1737805860080,-500.0,0.0001726,2]
[350344995,1737805860089,-500.0,0.0001726,2]
[350344996,1737805860098,-500.0,0.0001726,2]
[350344997,1737805860107,-500.0,0.0001726,2]
[350344998,1737805860116,-500.0,0.0001726,2]
[350344999,1737805860126,-500.0,0.0001726,2]
[350345000,1737805860135,-500.0,0.0001726,2]
[350345001,1737805860144,-500.0,0.0001726,2]
[350345002,1737805860153,-500.0,0.0001726,2]
[350345003,1737805860162,-500.0,0.0001726,2]
[350345004,1737805860172,-500.0,0.0001726,2]
[350345005,1737805860182,-500.0,0.0001726,2]
[350345006,1737805860191,-500.0,0.0001726,2]
[350345007,1737805860200,-500.0,0.0001726,2]
[350345008,1737805860209,-500.0,0.0001726,2]
[350345009,1737805860219,-355.32080685,0.0001726,2]
[350345010,1737805860228,-500.0,0.0001726,2]
[350345011,1737805860238,-500.0,0.0001726,2]
[350345012,1737805860248,-500.0,0.0001726,2]
[350345013,1737805860259,-500.0,0.0001726,2]
[350345014,1737805860268,-500.0,0.0001726,2]
[350345015,1737805860277,-500.0,0.0001726,2]
[350345016,1737805860287,-500.0,0.0001726,2]
[350345017,1737805860296,-237.61,0.0001726,2]
[350345018,1737805860305,-500.0,0.0001726,2]
[350345019,1737805860314,-500.0,0.0001726,2]
[350345020,1737805860323,-500.0,0.0001726,2]
[350345021,1737805860333,-500.0,0.0001726,2]
[350345022,1737805860342,-500.0,0.0001726,2]
[350345023,1737805860351,-500.0,0.0001726,2]
[350345024,1737805860361,-500.0,0.0001726,2]
[350345025,1737805860370,-500.0,0.0001726,2]
[350345026,1737805860379,-500.0,0.0001726,2]
[350345027,1737805860392,-500.0,0.0001726,2]
[350345028,1737805860402,-500.0,0.0001726,2]
[350345029,1737805860411,-500.0,0.0001726,2]
[350345030,1737805860421,-500.0,0.0001726,2]
[350345031,1737805860430,-500.0,0.0001726,2]
[350345032,1737805860440,-500.0,0.0001726,2]
[350345033,1737805860450,-500.0,0.0001726,2]
[350345034,1737805860460,-500.0,0.0001726,2]
[350345035,1737805860469,-500.0,0.0001726,2]
[350345036,1737805860478,-500.0,0.0001726,2]
[350345037,1737805860488,-500.0,0.0001726,2]
[350345038,1737805860497,-500.0,0.0001726,2]
[350345039,1737805860508,-500.0,0.0001726,2]
[350345040,1737805860517,-500.0,0.0001726,2]
[350345041,1737805860526,-500.0,0.0001726,2]
[350345042,1737805860536,-500.0,0.0001726,2]
[350345043,1737805860545,-1055.97,0.0001726,2]
[350345044,1737805860554,-500.0,0.0001726,2]
[350345045,1737805860563,-500.0,0.0001726,2]
[350345046,1737805860572,-500.0,0.0001726,2]
[350345047,1737805860581,-500.0,0.0001726,2]
[350345048,1737805860590,-500.0,0.0001726,2]
[350345049,1737805860599,-1166.4,0.0001726,2]
[350345050,1737805860608,-500.0,0.0001726,2]
[350345051,1737805860618,-1085.68,0.0001726,2]
[350345052,1737805860627,-997.13,0.0001726,2]
[350345053,1737805860636,-500.0,0.0001726,2]
[350345054,1737805860645,-500.0,0.0001726,2]
[350345055,1737805860654,-572.36,0.0001726,2]
[350345056,1737805860664,-639.38,0.0001726,2]
[350345057,1737805860674,-500.0,0.0001726,2]
[350345058,1737805860683,-500.0,0.0001726,2]
[350345059,1737805860693,-500.0,0.0001726,2]
[350345060,1737805860703,-1359.98,0.0001726,2]
[350345061,1737805860713,-1992.51,0.0001726,2]
[350345062,1737805860723,-500.0,0.0001726,2]
[350345063,1737805860733,-1558.37,0.0001726,2]
[350345064,1737805860744,-463.84009369,0.0001726,2]
[350345065,1737805860755,-1990.99,0.0001726,2]
[350345066,1737805860764,-500.0,0.0001726,2]
[350345067,1737805860773,-1219.62,0.0001726,2]
[350345068,1737805860782,-515.88,0.0001726,2]
[350345069,1737805860792,-500.0,0.0001726,2]
[350345070,1737805860802,-500.0,0.0001726,2]
[350345071,1737805860812,-500.0,0.0001726,2]
[350345072,1737805860821,-500.0,0.0001726,2]
[350345073,1737805860831,-500.0,0.0001726,2]
[350345074,1737805860841,-500.0,0.0001726,2]
[350345075,1737805860850,-1563.47,0.0001726,2]
[350345076,1737805860860,-500.0,0.0001726,2]
[350345077,1737805860871,-500.0,0.0001726,2]
[350345078,1737805860880,-500.0,0.0001726,2]
[350345079,1737805860889,-500.0,0.0001726,2]
[350345080,1737805860899,-500.0,0.0001726,2]
[350345081,1737805860908,-500.0,0.0001726,2]
[350345082,1737805860918,-500.0,0.0001726,2]
[350345083,1737805860927,-500.0,0.0001726,2]
[350345084,1737805860937,-500.0,0.0001726,2]
[350345085,1737805860946,-500.0,0.0001726,2]
[350345086,1737805860955,-363.45755256,0.0001726,2]
[350345087,1737805860965,-500.0,0.0001726,2]
[350345088,1737805860974,-814.57,0.0001726,2]
[350345089,1737805860983,-500.0,0.0001726,2]
[350345090,1737805860992,-500.0,0.0001726,2]
[350345091,1737805861001,-500.0,0.0001726,2]
[350345092,1737805861011,-546.71,0.0001726,2]
[350345093,1737805861020,-500.0,0.0001726,2]
[350345094,1737805861030,-500.0,0.0001726,2]
[350345095,1737805861039,-500.0,0.0001726,2]
[350345096,1737805861048,-500.0,0.0001726,2]
[350345097,1737805861058,-500.0,0.0001726,2]
[350345098,1737805861067,-500.0,0.0001726,2]
[350345099,1737805861076,-500.0,0.0001726,2]
[350345100,1737805861086,-500.0,0.0001726,2]
[350345101,1737805861095,-500.0,0.0001726,2]
[350345102,1737805861104,-500.0,0.0001726,2]
[350345103,1737805861114,-500.0,0.0001726,2]
[350345104,1737805861123,-616.14,0.0001726,2]
[350345105,1737805861133,-1524.95,0.0001726,2]
[350345106,1737805861142,-500.0,0.0001726,2]
[350345107,1737805861152,-693.11,0.0001726,2]
[350345108,1737805861161,-500.0,0.0001726,2]
[350345109,1737805861170,-500.0,0.0001726,2]
[350345110,1737805861180,-533.97,0.0001726,2]
[350345111,1737805861189,-500.0,0.0001726,2]
[350345112,1737805861199,-500.0,0.0001726,2]
[350345113,1737805861208,-500.0,0.0001726,2]
[350345114,1737805861217,-500.0,0.0001726,2]
[350345115,1737805861226,-500.0,0.0001726,2]
[350345116,1737805861235,-500.0,0.0001726,2]
[350345117,1737805861244,-500.0,0.0001726,2]
[350345118,1737805861254,-500.0,0.0001726,2]
[350345119,1737805861263,-500.0,0.0001726,2]
[350345120,1737805861273,-962.81,0.0001726,2]
[350345121,1737805861282,-500.0,0.0001726,2]
[350345122,1737805861292,-500.0,0.0001726,2]
[350345123,1737805861300,-303.36737797,0.0001726,2]
[350345124,1737805861317,-500.93262203,0.0001726,2]
[350345125,1737805861327,-500.0,0.0001726,2]
[350345126,1737805861335,-1325.96,0.0001726,2]
[350345127,1737805861345,-500.0,0.0001726,2]
[350345128,1737805861354,-500.0,0.0001726,2]
[350345129,1737805861363,-500.0,0.0001726,2]
[350345130,1737805861372,-500.0,0.0001726,2]
[350345131,1737805861386,-500.0,0.0001726,2]
[350345132,1737805861395,-2022.91,0.0001726,2]
[350345133,1737805861404,-500.0,0.0001726,2]
[350345134,1737805861413,-500.0,0.0001726,2]
[350345135,1737805861423,-500.0,0.0001726,2]
[350345136,1737805861432,-500.0,0.0001726,2]
[350345137,1737805861441,-608.41,0.0001726,2]
[350345138,1737805861450,-651.22,0.0001726,2]
[350345139,1737805861460,-500.0,0.0001726,2]
[350345140,1737805861471,-500.0,0.0001726,2]
[350345141,1737805861481,-483.3862379,0.0001726,2]
[350345142,1737805861501,-241.266112,0.00016986,2]
[350345143,1737805861511,-16.6137621,0.0001726,2]
[350345144,1737805861520,-945.33,0.0001726,2]
[350345145,1737805861530,-1062.5,0.0001726,2]
[350345146,1737805861538,-500.0,0.0001726,2]
[350345147,1737805861547,-354.2901274,0.0001726,2]
[350345148,1737805861559,-1492.2798726,0.0001726,2]
[350345149,1737805861571,-500.0,0.0001726,2]
[350345150,1737805861581,-509.45,0.0001726,2]
[350345151,1737805861590,-500.0,0.0001726,2]
[350345152,1737805861599,-500.0,0.0001726,2]
[350345153,1737805861610,-1975.36624692,0.00017352,2]
[350345154,1737805861620,-6589.55015883,0.00017352,2]
[350345155,1737805861630,-501.11602995,0.00017367,2]
[350345156,1737805861640,-1200.27,0.00017396,2]
[350345157,1737805861650,-1168.96,0.00017396,2]
[350345158,1737805861659,-435.87397857,0.00017397,2]
[350345159,1737805861670,-64.12602143,0.00017397,2]
[350345160,1737805861679,-467.28855015,0.00017397,2]
[350345163,1737806453629,150.06,0.00016658,30]
[350345171,1737806846142,-187.3,0.00010137,2]
[350345172,1737806846163,-177.51,0.00012329,2]
[350345173,1737806846184,-250.0,0.00014192,2]
[350345174,1737806846204,-402.03552881,0.00014454,2]
[350345175,1737806934986,500.0,0.00022,30]
[350345203,1737807035629,-1401.91,0.00013284,2]
[350345204,1737807035639,-166.77744667,0.00014981,2]
[350345205,1737807035649,-550.0,0.00015,2]
[350345206,1737807035658,-135.14259392,0.00015009,2]
[350345207,1737807035669,-114.85740608,0.00015009,2]
[350345208,1737807035679,-200.0,0.00015081,2]
[350345209,1737807035688,-791.59,0.00015122,2]
[350345210,1737807035697,-2754.7132121,0.00015155,2]
[350345211,1737807035708,-1710.11950921,0.00015155,2]
[350345212,1737807035719,-295.49189213,0.00015155,2]
[350345213,1737807035735,-1453.12867589,0.00015155,2]
[350345214,1737807035747,-692.86,0.00015155,2]
[350345215,1737807035761,-3523.83852869,0.00015155,2]
[350345216,1737807035771,-1685.46393957,0.00015155,2]
[350345217,1737807035810,-5226.49427502,0.00015155,2]
[350345218,1737807035821,-550.0,0.00015155,2]
[350345219,1737807035834,-2011.94000034,0.00015155,2]
[350345220,1737807035846,-654.8849657,0.00015155,2]
[350345221,1737807035863,-540.0,0.00015155,2]
[350345222,1737807035874,-535.47,0.00015155,2]
[350345223,1737807035898,-5244.38900129,0.00015155,2]
[350345224,1737807035909,-7451.35781808,0.00015155,2]
[350345225,1737807035918,-1000.0,0.00015188,2]
[350345226,1737807035929,-595.59,0.00015202,2]
[350345227,1737807035938,-186.14,0.00015296,2]
[350345228,1737807035947,-896.22,0.00015343,2]
[350345229,1737807035957,-3155.54,0.00015378,2]
[350345230,1737807035966,-803.54,0.00015459,2]
[350345231,1737807035976,-250.0,0.00015492,2]
[350345232,1737807035985,-1401.91,0.00015548,2]
[350345233,1737807035995,-1852.42,0.00015601,2]
[350345234,1737807036005,-166.77744666,0.00015628,2]
[350345235,1737807036014,-2506.56,0.00015681,2]
[350345236,1737807036024,-169.92,0.00015795,2]
[350345237,1737807036033,-200.0,0.00015795,2]
[350345238,1737807036043,-177.51,0.00016096,2]
[350345239,1737807036052,-174.43,0.00016192,2]
[350345240,1737807036062,-250.0,0.00016236,2]
[350345241,1737807036071,-265.14,0.00016264,2]
[350345242,1737807036080,-166.77744666,0.00016274,2]
[350345243,1737807036090,-186.14,0.00016315,2]
[350345244,1737807036100,-1000.0,0.00016338,2]
[350345245,1737807036110,-285.9099,0.00016338,2]
[350345246,1737807036120,-5000.0,0.00016374,2]
[350345247,1737807036129,-12881.6402092,0.00016374,2]
[350345248,1737807036141,-1395.09553501,0.00016374,2]
[350345250,1737807036174,-532.63153908,0.00016374,2]
[350345252,1737807036186,-909.86740824,0.00016374,2]
[350345262,1737807036275,-2257.03968916,0.00016374,2]
[350345265,1737807036288,-4875.70491931,0.00016374,2]
[350345267,1737807036297,-6126.3530406,0.00016374,2]
[350345269,1737807036306,-189.61631166,0.00016438,2]
[350345271,1737807036315,-441.00153378,0.00016438,2]
[350345273,1737807036324,-364.40709229,0.00016438,2]
[350345274,1737807036333,-500.0,0.00016438,2]
[350345276,1737807036342,-500.0,0.00016438,2]
[350345278,1737807036352,-500.0,0.00016438,2]
[350345281,1737807036361,-535.35824389,0.00016438,2]
[350345283,1737807036371,-500.0,0.00016438,2]
[350345284,1737807036380,-500.0,0.00016438,2]
[350345286,1737807036389,-500.0,0.00016438,2]
[350345288,1737807036398,-500.0,0.00016438,2]
[350345291,1737807036408,-500.0,0.00016438,2]
[350345293,1737807036417,-500.0,0.00016438,2]
[350345294,1737807036426,-504.0104208,0.00016438,2]
[350345297,1737807036437,-500.0,0.00016438,2]
[350345299,1737807036446,-504.68435353,0.00016438,2]
[350345301,1737807036456,-500.0,0.00016438,2]
[350345302,1737807036465,-500.0,0.00016438,2]
[350345304,1737807036474,-500.0,0.00016438,2]
[350345306,1737807036484,-300.77260254,0.00016438,2]
[350345308,1737807036494,-500.0,0.00016438,2]
[350345310,1737807036503,-522.2945669,0.00016438,2]
[350345312,1737807036513,-503.23338159,0.00016438,2]
[350345314,1737807036522,-500.0,0.00016438,2]
[350345316,1737807036531,-507.44910582,0.00016438,2]
[350345318,1737807036540,-500.0,0.00016438,2]
[350345320,1737807036549,-500.0,0.00016438,2]
[350345322,1737807036558,-504.33000551,0.00016438,2]
[350345324,1737807036567,-500.0,0.00016438,2]
[350345326,1737807036577,-500.0,0.00016438,2]
[350345328,1737807036585,-500.0,0.00016438,2]
[350345330,1737807036595,-500.0,0.00016438,2]
[350345332,1737807036603,-500.0,0.00016438,2]
[350345334,1737807036612,-500.0,0.00016438,2]
[350345336,1737807036622,-506.02298936,0.00016438,2]
[350345338,1737807036631,-500.0,0.00016438,2]
[350345340,1737807036641,-500.0,0.00016438,2]
[350345342,1737807036650,-503.21297626,0.00016438,2]
[350345344,1737807036659,-505.99566904,0.00016438,2]
[350345346,1737807036668,-500.0,0.00016438,2]
[350345348,1737807036677,-502.57582123,0.00016438,2]
[350345350,1737807036686,-560.99808379,0.00016438,2]
[350345352,1737807036695,-507.19377307,0.00016438,2]
[350345354,1737807036705,-500.0,0.00016438,2]
[350345356,1737807036714,-500.0,0.00016438,2]
[350345358,1737807036723,-500.0,0.00016438,2]
[350345360,1737807036733,-500.0,0.00016438,2]
[350345362,1737807036743,-500.0,0.00016438,2]
[350345364,1737807036752,-500.0,0.00016438,2]
[350345366,1737807036765,-500.0,0.00016438,2]
[350345368,1737807036775,-527.90205922,0.00016438,2]
[350345370,1737807036783,-500.0,0.00016438,2]
[350345372,1737807036792,-500.0,0.00016438,2]
[350345374,1737807036801,-500.0,0.00016438,2]
[350345376,1737807036811,-500.0,0.00016438,2]
[350345378,1737807036821,-500.0,0.00016438,2]
[350345380,1737807036830,-500.0,0.00016438,2]
[350345382,1737807036840,-500.0,0.00016438,2]
[350345383,1737807036850,-500.0,0.00016438,2]
[350345384,1737807036859,-500.0,0.00016438,2]
[350345386,1737807036869,-500.0,0.00016438,2]
[350345388,1737807036878,-500.0,0.00016438,2]
[350345390,1737807036894,-500.0,0.00016438,2]
[350345392,1737807036903,-500.0,0.00016438,2]
[350345394,1737807036912,-392.6575321,0.00016438,2]
[350345396,1737807036921,-394.59767607,0.00016438,2]
[350345399,1737807036935,-105.40232393,0.00016438,2]
[350345400,1737807036945,-500.0,0.00016438,2]
[350345403,1737807036956,-500.0,0.00016438,2]
[350345405,1737807036966,-500.0,0.00016438,2]
[350345406,1737807036976,-500.0,0.00016438,2]
[350345408,1737807036985,-99.7083122,0.00016438,2]
[350345411,1737807036998,-400.2916878,0.00016438,2]
[350345413,1737807037007,-500.0,0.00016438,2]
[350345415,1737807037016,-500.0,0.00016438,2]
[350345416,1737807037025,-500.0,0.00016438,2]
[350345418,1737807037035,-500.0,0.00016438,2]
[350345420,1737807037044,-500.0,0.00016438,2]
[350345422,1737807037054,-500.0,0.00016438,2]
[350345424,1737807037063,-500.0,0.00016438,2]
[350345426,1737807037073,-500.0,0.00016438,2]
[350345428,1737807037082,-500.0,0.00016438,2]
[350345430,1737807037091,-500.0,0.00016438,2]
[350345432,1737807037100,-500.0,0.00016438,2]
[350345434,1737807037109,-500.0,0.00016438,2]
[350345435,1737807037118,-500.0,0.00016438,2]
[350345438,1737807037128,-502.19952871,0.00016438,2]
[350345439,1737807037137,-500.0,0.00016438,2]
[350345441,1737807037146,-500.0,0.00016438,2]
[350345443,1737807037156,-500.0,0.00016438,2]
[350345445,1737807037165,-500.0,0.00016438,2]
[350345447,1737807037175,-500.0,0.00016438,2]
[350345449,1737807037185,-472.87378349,0.00016438,2]
[350345487,1737807037483,-27.12621651,0.00016438,2]
[350345489,1737807037493,-355.3428399,0.00016438,2]
[350345492,1737807037505,-147.1119605,0.00016438,2]
[350345494,1737807037515,-308.37668619,0.00016438,2]
[350345497,1737807037536,-191.62331381,0.00016438,2]
[350345499,1737807037546,-500.0,0.00016438,2]
[350345501,1737807037556,-500.0,0.00016438,2]
[350345503,1737807037566,-500.0,0.00016438,2]
[350345505,1737807037575,-316.53929752,0.00016438,2]